bitfinex/quotes_BTCUSD_20220211
["timestamp","ask_amount","ask_price","bid_price","bid_amount"]
[1644545020246,0.521088,43224.0,43223.0,0.00047429]
[1644545020647,0.521088,43224.0,43220.0,0.0001]
[1644545020648,0.057899,43223.0,43220.0,0.0001]
[1644545020846,0.440485,43222.0,43221.0,0.00047431]
[1644545021897,0.440485,43222.0,43220.0,0.0001]
[1644545022092,0.486885,43222.0,43220.0,0.0001]
[1644545022390,0.586885,43222.0,43220.0,0.0001]
[1644545022589,0.63177269,43221.0,43220.0,0.0001]
[1644545022786,0.77817269,43221.0,43220.0,0.0001]
[1644545023388,0.83607069,43221.0,43220.0,0.0001]
[1644545023788,0.73607069,43221.0,43220.0,0.0001]
[1644545024888,0.324726,43224.0,43221.0,0.95]
[1644545025146,0.4955,43235.0,43221.0,0.00512243]
[1644545025446,0.4955,43235.0,43233.0,0.29971002]
[1644545025644,0.4955,43235.0,43228.0,0.23690843]
[1644545025645,0.324726,43234.0,43228.0,0.23690843]
[1644545025842,0.324726,43234.0,43233.0,0.28879901]
[1644545026042,0.324726,43238.0,43233.0,0.28879901]
[1644545026242,0.26182951,43239.0,43233.0,0.28879901]
[1644545026441,0.324726,43238.0,43234.0,0.057867]
[1644545026641,0.324726,43238.0,43234.0,0.115734]
[1644545027041,0.324726,43238.0,43234.0,0.165734]
[1644545027251,0.324726,43238.0,43235.0,0.10786418]
[1644545027444,0.0508828,43241.0,43235.0,0.10786418]
[1644545027642,0.05060291,43241.0,43235.0,0.10786418]
[1644545027842,0.05,43241.0,43236.0,0.057862]
[1644545028041,0.43270542,43241.0,43236.0,0.057862]
[1644545028241,0.382594,43240.0,43236.0,0.057862]
[1644545028442,0.382594,43240.0,43235.0,0.107866]
[1644545028443,0.32492632,43239.0,43235.0,0.05]
[1644545028644,0.324726,43238.0,43235.0,0.05]
[1644545028889,0.324726,43238.0,43233.0,0.00042248]
[1644545029089,0.324726,43238.0,43230.0,0.1]
[1644545029389,0.324726,43237.0,43233.0,0.00042248]
[1644545029795,0.324726,43237.0,43235.0,0.38752657]
[1644545029991,0.0508673,43241.0,43239.0,0.27871754]
[1644545030192,0.324726,43240.0,43239.0,0.27871754]
[1644545030391,0.324726,43240.0,43239.0,0.37871754]
[1644545030591,0.163613,43240.0,43239.0,0.37871754]
[1644545030792,0.324726,43240.0,43239.0,0.37871754]
[1644545030992,0.163613,43240.0,43239.0,0.1]
[1644545031192,0.324726,43240.0,43239.0,0.05]
[1644545032296,0.324726,43241.0,43240.0,0.05786]
[1644545032543,0.00052851,43242.0,43240.0,0.11572]
[1644545032738,0.324726,43243.0,43240.0,0.11572]
[1644545032739,0.32500589,43243.0,43240.0,0.11572]
[1644545032938,0.3252545,43243.0,43240.0,0.11572]
[1644545033540,0.3252545,43243.0,43239.0,0.1]
[1644545033740,0.3252545,43243.0,43233.0,0.00037912]
[1644545033939,0.3252545,43243.0,43226.0,0.1181]
[1644545033940,0.32500589,43243.0,43228.0,0.23690843]
[1644545034140,0.32500589,43243.0,43233.0,0.00037912]
[1644545034542,0.38287089,43243.0,43233.0,0.39610849]
[1644545034742,0.36624903,43240.0,43233.0,0.39610849]
[1644545035141,0.36624903,43240.0,43233.0,0.165739]
[1644545035341,0.324726,43239.0,43233.0,0.21612787]
[1644545035542,0.3166455,43236.0,43233.0,0.21612787]
[1644545036392,0.3166455,43236.0,43233.0,0.215739]
[1644545036592,0.05787,43238.0,43233.0,0.215739]
[1644545036794,0.05787,43238.0,43234.0,0.057868]
[1644545037195,0.36624903,43240.0,43234.0,0.115732]
[1644545037392,0.324726,43239.0,43234.0,0.115732]
[1644545037597,0.25298921,43238.0,43235.0,0.05]
[1644545037793,0.324726,43237.0,43235.0,0.05]
[1644545037994,0.25298921,43238.0,43235.0,0.05]
[1644545038194,0.25298921,43238.0,43233.0,0.00038887]
[1644545038195,0.324726,43237.0,43233.0,0.00038887]
[1644545038793,0.324726,43237.0,43233.0,0.00038668]
[1644545039794,0.324726,43237.0,43226.0,0.44005696]
[1644545040047,0.33313488,43232.0,43226.0,0.54005696]
[1644545040244,0.33313488,43232.0,43226.0,0.42430996]
[1644545040441,0.33098708,43227.0,43226.0,0.42430996]
[1644545040840,0.33098708,43227.0,43226.0,0.1]
[1644545041041,0.33098708,43227.0,43226.0,0.05]
[1644545041340,0.33098708,43227.0,43224.0,0.00038676]
[1644545042242,0.33098708,43227.0,43225.0,0.33623927]
[1644545042641,0.33098708,43227.0,43225.0,0.38623927]
[1644545042844,0.33098708,43227.0,43225.0,0.43623927]
[1644545043241,0.33098708,43227.0,43225.0,0.49411756]
[1644545043441,0.31228708,43227.0,43225.0,0.49411756]
[1644545044492,0.31228708,43227.0,43224.0,0.05826722]
[1644545044690,0.31228708,43227.0,43221.0,0.057886]
[1644545044691,0.324726,43226.0,43221.0,0.057886]
[1644545044889,0.324726,43226.0,43224.0,0.05038822]
[1644545045089,0.324726,43226.0,43224.0,0.00038822]
[1644545045889,0.324726,43225.0,43221.0,0.05]
[1644545046189,0.31228708,43227.0,43223.0,0.00038694]
[1644545046890,0.057882,43228.0,43224.0,0.057882]
[1644545047090,0.0464,43232.0,43224.0,0.057882]
[1644545047739,0.29955788,43226.0,43225.0,0.05]
[1644545048141,0.62428388,43226.0,43225.0,0.1]
[1644545048338,0.29955788,43226.0,43225.0,0.1]
[1644545048538,0.29955788,43226.0,43224.0,0.05]
[1644545048738,0.324726,43225.0,43224.0,0.1]
[1644545049139,0.29955788,43226.0,43224.0,0.1]
[1644545050239,0.35744188,43226.0,43224.0,0.1]
[1644545050843,0.324726,43225.0,43223.0,0.00014223]
[1644545051594,0.429021,43224.0,43223.0,0.00014223]
[1644545051998,0.429021,43224.0,43220.0,0.0001]
[1644545052197,0.324726,43223.0,43222.0,0.00014224]
[1644545052397,0.440515,43223.0,43222.0,0.00014224]
[1644545053002,0.486915,43223.0,43222.0,0.00014224]
[1644545053202,0.586915,43223.0,43220.0,0.0001]
[1644545053596,0.586915,43223.0,43220.0,0.00057414]
[1644545054197,0.702727,43223.0,43220.0,0.00057414]
[1644545054397,0.702727,43223.0,43220.0,0.0001]
[1644545054398,0.324726,43221.0,43220.0,0.0001]
[1644545054598,0.371126,43221.0,43220.0,0.0001]
[1644545055951,0.471126,43221.0,43210.0,0.00018323]
[1644545056150,0.05791,43218.0,43209.0,0.00018323]
[1644545056349,0.05,43216.0,43205.0,0.00128323]
[1644545056549,0.210013,43215.0,43205.0,0.00128323]
[1644545056750,0.0464,43215.0,43205.0,0.00128323]
[1644545057152,0.37782118,43206.0,43205.0,0.00128323]
[1644545057350,0.37782118,43206.0,43205.0,0.35252499]
[1644545057750,0.29023413,43211.0,43205.0,0.35252499]
[1644545057950,0.29023413,43211.0,43205.0,0.35270822]
[1644545058253,0.29023413,43211.0,43205.0,0.05128323]
[1644545058890,0.2947779,43210.0,43206.0,0.057905]
[1644545059092,0.0464,43215.0,43206.0,0.11599423]
[1644545059093,0.115811,43213.0,43206.0,0.11599423]
[1644545059293,0.0464,43215.0,43207.0,0.05]
[1644545059491,0.0464,43215.0,43207.0,0.00018323]
[1644545059692,0.0464,43215.0,43207.0,0.05790126]
[1644545059890,0.0464,43215.0,43207.0,0.05808449]
[1644545060091,0.30751112,43212.0,43207.0,0.32338535]
[1644545060291,0.36541212,43212.0,43208.0,0.057901]
[1644545060491,0.324726,43211.0,43209.0,0.00036102]
[1644545061293,0.324726,43211.0,43209.0,0.05826024]
[1644545061594,0.36541212,43212.0,43209.0,0.05789922]
[1644545061892,0.324726,43211.0,43209.0,0.05808245]
[1644545062092,0.324726,43211.0,43209.0,0.05789922]
[1644545062292,0.324726,43210.0,43209.0,0.11579922]
[1644545062551,0.324726,43211.0,43209.0,0.11598245]
[1644545062845,0.324726,43211.0,43209.0,0.11579922]
[1644545063745,0.30751112,43212.0,43209.0,0.11579922]
[1644545063945,0.324726,43211.0,43210.0,0.057899]
[1644545064146,0.324726,43211.0,43210.0,0.107899]
[1644545066292,0.324726,43211.0,43209.0,0.05808323]
[1644545066496,0.324726,43211.0,43208.0,0.00064799]
[1644545066497,0.324726,43209.0,43208.0,0.00064799]
[1644545066696,0.324726,43209.0,43208.0,0.00046417]
[1644545066697,0.371126,43209.0,43208.0,0.00046417]
[1644545067694,0.371126,43209.0,43206.0,0.00018382]
[1644545067896,0.486959,43209.0,43205.0,0.00128382]
[1644545068293,0.057917,43208.0,43205.0,0.00128382]
[1644545068493,0.371126,43207.0,43205.0,0.00128382]
[1644545068698,0.371126,43207.0,43205.0,0.0011]
[1644545069295,0.64507417,43207.0,43205.0,0.0011]
[1644545069894,0.70298917,43207.0,43205.0,0.0011]
[1644545071546,0.70298917,43207.0,43204.0,0.00046422]
[1644545071547,0.95,43206.0,43204.0,0.00046422]
[1644545071744,0.429048,43205.0,43204.0,0.00046422]
[1644545072342,0.429048,43205.0,43203.0,0.0033]
[1644545072544,0.77193811,43205.0,43203.0,0.0033]
[1644545072945,0.87193811,43205.0,43203.0,0.0033]
[1644545074792,0.77193811,43205.0,43203.0,0.0033]
[1644545076499,0.382648,43205.0,43203.0,0.0033]
[1644545076696,0.01005671,43212.0,43203.0,0.0033]
[1644545076697,0.324726,43211.0,43203.0,0.0033]
[1644545077293,0.32444752,43211.0,43203.0,0.0033]
[1644545077544,0.30688644,43208.0,43206.0,0.11579318]
[1644545077741,0.057905,43208.0,43207.0,0.05]
[1644545077940,0.01005671,43212.0,43207.0,0.05]
[1644545078145,0.01005671,43212.0,43196.0,0.00155584]
[1644545078146,1.274774,43209.0,43196.0,0.00155584]
[1644545078342,0.324774,43207.0,43196.0,0.00155584]
[1644545078540,0.324774,43207.0,43196.0,0.001]
[1644545078541,0.382703,43204.0,43196.0,0.001]
[1644545078741,0.324774,43202.0,43196.0,0.001]
[1644545078943,0.0464,43201.0,43196.0,0.001]
[1644545079145,0.7632764,43200.0,43196.0,0.001]
[1644545079342,0.8096764,43200.0,43196.0,0.001]
[1644545079542,0.80928102,43200.0,43196.0,0.001]
[1644545079743,0.80849175,43200.0,43196.0,0.001]
[1644545080143,0.86642275,43200.0,43196.0,0.001]
[1644545080344,0.324774,43198.0,43196.0,0.001]
[1644545080544,0.36413693,43197.0,43196.0,0.001]
[1644545080743,0.68891093,43197.0,43196.0,0.001]
[1644545080943,0.78891093,43197.0,43196.0,0.001]
[1644545081395,0.84684593,43197.0,43196.0,0.001]
[1644545081595,0.84684593,43197.0,43194.0,0.0011]
[1644545081596,0.95,43196.0,43194.0,0.0011]
[1644545081797,1.77736211,43196.0,43194.0,0.0011]
[1644545081996,1.45258811,43196.0,43194.0,0.0011]
[1644545083197,1.77736211,43196.0,43194.0,0.0011]
[1644545083400,0.63803633,43195.0,43189.0,0.00100253]
[1644545083599,0.0464,43194.0,43189.0,0.00100253]
[1644545083800,0.374774,43193.0,43189.0,0.00100253]
[1644545083997,0.70051337,43192.0,43189.0,0.00100253]
[1644545084198,0.70051337,43192.0,43187.0,0.00615039]
[1644545084199,0.95,43189.0,43180.0,0.0032]
[1644545084402,0.8077582,43188.0,43180.0,0.0032]
[1644545084801,0.382718,43187.0,43180.0,0.0032]
[1644545085078,0.382718,43187.0,43185.0,0.0027787]
[1644545085079,0.38342959,43186.0,43185.0,0.0027787]
[1644545085465,0.38342959,43186.0,43180.0,0.0032]
[1644545085466,0.95,43184.0,43180.0,0.0032]
[1644545085666,1.31247309,43184.0,43180.0,0.0032]
[1644545085866,0.46247309,43184.0,43180.0,0.0032]
[1644545086065,0.78724709,43184.0,43180.0,0.0032]
[1644545086265,0.62570309,43184.0,43180.0,0.0032]
[1644545086466,0.46247309,43184.0,43180.0,0.0032]
[1644545086867,0.46247309,43184.0,43182.0,0.00338359]
[1644545087267,0.78724709,43184.0,43182.0,0.00338359]
[1644545087469,0.52570309,43184.0,43182.0,0.00338359]
[1644545087670,0.68724709,43184.0,43182.0,0.00338359]
[1644545087868,0.62570309,43184.0,43182.0,0.00338359]
[1644545088068,0.78724709,43184.0,43182.0,0.00338359]
[1644545088269,0.62570309,43184.0,43182.0,0.00338359]
[1644545088468,0.78724709,43184.0,43182.0,0.00338359]
[1644545088668,0.62570309,43184.0,43182.0,0.00338359]
[1644545088896,0.46247309,43184.0,43182.0,0.00338359]
[1644545089296,0.78724709,43184.0,43182.0,0.00338359]
[1644545089496,0.62570309,43184.0,43182.0,0.00338359]
[1644545089699,0.78724709,43184.0,43182.0,0.00338359]
[1644545089897,0.62570309,43184.0,43182.0,0.00338359]
[1644545090096,0.78724709,43184.0,43182.0,0.00338359]
[1644545090300,0.62570309,43184.0,43182.0,0.00338359]
[1644545090496,0.95,43181.0,43178.0,0.0032]
[1644545090699,0.20963,43180.0,43178.0,0.0032]
[1644545090898,0.371174,43180.0,43178.0,0.0032]
[1644545091097,0.20963,43180.0,43178.0,0.0032]
[1644545091296,0.471174,43180.0,43178.0,0.0032]
[1644545091498,0.30963,43180.0,43178.0,0.0032]
[1644545091897,0.1464,43180.0,43178.0,0.0032]
[1644545092098,0.32803346,43180.0,43178.0,0.0032]
[1644545092300,0.55280746,43180.0,43178.0,0.0032]
[1644545092547,0.32803346,43180.0,43178.0,0.0032]
[1644545092743,0.64431827,43180.0,43178.0,0.0032]
[1644545093347,0.64431827,43180.0,43169.0,0.0021]
[1644545093348,0.95,43176.0,43169.0,0.0021]
[1644545093547,0.324774,43174.0,43169.0,0.0021]
[1644545093845,0.68989456,43174.0,43169.0,0.0021]
[1644545094249,1.32867856,43173.0,43169.0,0.001]
[1644545094451,0.371174,43172.0,43169.0,0.001]
[1644545094647,0.34579077,43171.0,43169.0,0.001]
[1644545094948,0.371174,43170.0,43169.0,0.001]
[1644545095145,0.69485199,43170.0,43169.0,0.001]
[1644545095346,0.79485199,43170.0,43169.0,0.001]
[1644545095546,0.95,43169.0,43162.0,0.001]
[1644545095749,0.487124,43168.0,43162.0,0.001]
[1644545096047,0.58820433,43166.0,43162.0,0.001]
[1644545096295,0.324774,43164.0,43162.0,0.001]
[1644545096499,0.26343033,43166.0,43162.0,0.001]
[1644545096500,1.09890731,43163.0,43162.0,0.001]
[1644545096696,1.15688731,43163.0,43162.0,0.001]
[1644545097296,1.274774,43162.0,43152.0,0.0021]
[1644545097502,0.0464,43161.0,43157.0,0.00018292]
[1644545097704,0.324774,43160.0,43152.0,0.00228292]
[1644545097999,0.10798775,43158.0,43152.0,0.00228292]
[1644545098198,0.20963,43157.0,43152.0,0.33254719]
[1644545098400,0.0464,43157.0,43152.0,0.33254719]
[1644545098598,0.0464,43157.0,43152.0,0.00228292]
[1644545098800,0.382757,43156.0,43152.0,0.00228292]
[1644545099001,0.0464,43155.0,43152.0,0.00228292]
[1644545099204,0.440738,43154.0,43152.0,0.00228292]
[1644545099402,0.440738,43154.0,43152.0,0.0021]
[1644545099602,0.30502433,43153.0,43152.0,0.0021]
[1644545099803,0.72979833,43153.0,43152.0,0.0021]
[1644545100060,0.67619833,43153.0,43152.0,0.0021]
[1644545100248,0.97599773,43153.0,43152.0,0.0021]
[1644545102752,0.67619833,43153.0,43152.0,0.0021]
[1644545103151,0.96049494,43153.0,43152.0,0.00198755]
[1644545106495,1.05549494,43153.0,43152.0,0.00198755]
[1644545106696,1.05549494,43153.0,43150.0,0.00023437]
[1644545106697,0.00011245,43152.0,43150.0,7.29e-06]
[1644545106897,0.0464,43151.0,43150.0,0.00018962]
[1644545107098,0.75493805,43151.0,43150.0,7.29e-06]
[1644545107296,0.75493805,43151.0,43145.0,0.00128233]
[1644545107297,0.85493805,43151.0,43146.0,0.00018233]
[1644545107547,0.324774,43149.0,43145.0,0.00128233]
[1644545107748,0.0464,43148.0,43145.0,0.00128233]
[1644545107943,0.40016086,43146.0,43145.0,0.00128233]
[1644545108143,0.77133486,43146.0,43145.0,0.0011]
[1644545108543,1.0520951,43146.0,43145.0,0.0011]
[1644545109043,1.1520951,43146.0,43145.0,0.0011]
[1644545109244,0.77133486,43146.0,43145.0,0.0011]
[1644545109644,1.05360222,43146.0,43145.0,0.0011]
[1644545110651,1.15360222,43146.0,43144.0,0.00128233]
[1644545110944,0.87133486,43146.0,43144.0,0.0011]
[1644545113294,0.8770202,43146.0,43144.0,0.0011]
[1644545113493,0.9270202,43146.0,43144.0,0.0011]
[1644545113893,0.99304014,43146.0,43143.0,0.0006289]
[1644545114092,0.382785,43144.0,43143.0,0.0006289]
[1644545114294,0.95,43141.0,43135.0,0.0021]
[1644545114495,0.371174,43140.0,43135.0,0.0021]
[1644545114896,0.25812288,43139.0,43135.0,0.0021]
[1644545115155,0.324774,43134.0,43127.0,0.0001819]
[1644545115354,0.28731713,43127.0,43126.0,0.02]
[1644545115562,0.65877113,43127.0,43126.0,0.02]
[1644545116154,1.00021699,43127.0,43126.0,0.02]
[1644545116554,0.71289986,43127.0,43126.0,0.0194678]
[1644545116952,0.429479,43127.0,43126.0,0.0194678]
[1644545117554,0.429479,43127.0,43126.0,0.01546789]
[1644545117955,0.73456025,43127.0,43126.0,0.01546789]
[1644545118158,0.429479,43127.0,43126.0,0.01546789]
[1644545119003,0.104425,43127.0,43126.0,0.01546789]
[1644545119301,0.429479,43127.0,43126.0,0.01546789]
[1644545119901,0.73015777,43127.0,43126.0,0.01546789]
[1644545120704,1.01450758,43127.0,43126.0,0.01546789]
[1644545120901,0.73015777,43127.0,43126.0,0.01546789]
[1644545122201,1.01189672,43127.0,43126.0,0.01546789]
[1644545122402,0.73015777,43127.0,43126.0,0.01546789]
[1644545122852,1.01896782,43127.0,43126.0,0.01546789]
[1644545127098,0.95,43126.0,43121.0,0.00499703]
[1644545127300,0.104437,43125.0,43124.0,0.00018165]
[1644545127498,0.104437,43125.0,43121.0,0.00499703]
[1644545127499,0.487528,43125.0,43121.0,0.00499703]
[1644545127698,0.157859,43124.0,43121.0,0.00499703]
[1644545128700,0.058037,43123.0,43121.0,0.00499703]
[1644545128899,0.325054,43122.0,43121.0,0.00499703]
[1644545129099,0.441126,43122.0,43121.0,0.00499703]
[1644545131243,0.72433738,43122.0,43121.0,0.00499703]
[1644545131648,0.77073738,43122.0,43121.0,0.00499703]
[1644545132046,0.487526,43122.0,43121.0,0.00499703]
[1644545132545,0.77038136,43122.0,43121.0,0.00499703]
[1644545132746,0.487526,43122.0,43121.0,0.00499703]
[1644545133147,0.441126,43122.0,43121.0,0.00499703]
[1644545133347,0.116072,43122.0,43121.0,0.00499703]
[1644545133801,0.441126,43122.0,43121.0,0.00499703]
[1644545134999,0.76086775,43122.0,43121.0,0.00499703]
[1644545135200,0.441126,43122.0,43121.0,0.00499703]
[1644545136501,0.487526,43122.0,43121.0,0.00499703]
[1644545137099,0.78219214,43122.0,43121.0,0.00499703]
[1644545150103,0.78219214,43122.0,43108.0,0.3021]
[1644545150104,0.058049,43119.0,43108.0,0.3021]
[1644545150301,0.371454,43118.0,43108.0,0.3021]
[1644545150503,0.371454,43118.0,43106.0,0.05]
[1644545150504,0.29143845,43107.0,43106.0,0.05]
[1644545150801,0.61649245,43107.0,43106.0,0.05]
[1644545151000,1.18302056,43107.0,43106.0,0.05]
[1644545151900,1.50559568,43107.0,43106.0,0.05]
[1644545152548,1.49912951,43107.0,43106.0,0.05]
[1644545153444,1.49912951,43107.0,43102.0,0.1011]
[1644545153644,0.058053,43105.0,43102.0,0.0511]
[1644545153843,0.325054,43104.0,43102.0,0.0011]
[1644545155244,0.383109,43104.0,43102.0,0.0011]
[1644545156698,0.3891518,43104.0,43102.0,0.0011]
[1644545158299,0.61975627,43103.0,43102.0,0.0011]
[1644545158499,0.66615627,43103.0,43102.0,0.0011]
[1644545158701,1.275152,43102.0,43095.0,0.001]
[1644545158902,0.462526,43101.0,43089.0,0.3934]
[1644545159102,0.15,43097.0,43091.0,0.0011]
[1644545159306,0.371552,43096.0,43094.0,0.00169679]
[1644545159506,0.0464,43095.0,43094.0,0.00169679]
[1644545159703,0.6722083,43095.0,43094.0,0.00169679]
[1644545160245,0.6722083,43095.0,43091.0,0.0011]
[1644545160246,0.7302863,43095.0,43091.0,0.0011]
[1644545160447,0.7302863,43095.0,43092.0,0.00042421]
[1644545161446,0.7302863,43095.0,43091.0,0.0011]
[1644545161647,0.7302863,43095.0,43092.0,0.00042422]
[1644545162546,0.7302863,43095.0,43091.0,0.0011]
[1644545162746,0.7302863,43095.0,43092.0,0.00042422]
[1644545163900,0.7302863,43095.0,43091.0,0.0011]
[1644545164099,0.7302863,43095.0,43091.0,0.0511]
[1644545165099,0.7302863,43095.0,43091.0,0.0011]
[1644545165300,0.7302863,43095.0,43091.0,0.0511]
[1644545165500,0.42963,43095.0,43091.0,0.0511]
[1644545165702,0.325152,43095.0,43091.0,0.0511]
[1644545165900,0.325152,43097.0,43092.0,0.00017875]
[1644545166301,0.325152,43096.0,43092.0,0.00017875]
[1644545166500,0.28510429,43098.0,43093.0,0.2980832]
[1644545166702,0.383209,43097.0,43093.0,0.2980832]
[1644545166900,0.383209,43097.0,43093.0,0.0022]
[1644545167205,0.34722707,43097.0,43093.0,0.0022]
[1644545167651,0.34722707,43097.0,43093.0,0.00262315]
[1644545167849,0.40528307,43097.0,43093.0,0.00262315]
[1644545168152,0.058059,43095.0,43094.0,0.38010186]
[1644545168348,0.058059,43095.0,43094.0,0.38028061]
[1644545168849,0.058059,43095.0,43094.0,0.00017875]
[1644545169050,0.32518,43095.0,43094.0,0.05]
[1644545169254,0.06722968,43104.0,43096.0,0.52925785]
[1644545169255,0.00917368,43104.0,43096.0,0.52925785]
[1644545169452,0.00917368,43104.0,43101.0,0.05]
[1644545169651,0.32518,43103.0,43101.0,0.05]
[1644545169857,0.3,43114.0,43101.0,0.05]
[1644545170052,0.30840665,43109.0,43103.0,0.34218766]
[1644545170254,0.11609,43106.0,43103.0,0.05]
[1644545170454,0.32518,43105.0,43103.0,0.05017875]
[1644545170651,0.32518,43105.0,43099.0,0.00017875]
[1644545170853,0.30840665,43109.0,43099.0,0.00017875]
[1644545171053,0.32518,43108.0,43102.0,0.05]
[1644545171303,0.383222,43108.0,43104.0,0.19649117]
[1644545171603,0.11608,43113.0,43104.0,0.05]
[1644545171800,0.11608,43113.0,43103.0,0.00017875]
[1644545171801,0.62518,43112.0,43103.0,0.00017875]
[1644545172000,0.25741695,43110.0,43102.0,0.00042306]
[1644545172200,0.25741695,43110.0,43102.0,0.00017875]
[1644545172402,0.25741695,43110.0,43101.0,0.32197473]
[1644545172403,0.35750967,43109.0,43101.0,0.32215348]
[1644545172603,0.058046,43107.0,43105.0,0.00042303]
[1644545172800,0.32518,43106.0,43105.0,0.00042303]
[1644545173399,0.32518,43106.0,43101.0,0.05017875]
[1644545173602,0.116094,43107.0,43103.0,0.00042304]
[1644545173801,0.11157244,43115.0,43106.0,0.05]
[1644545173802,0.1121186,43115.0,43106.0,0.05]
[1644545174005,0.00054616,43115.0,43114.0,0.37518]
[1644545174201,0.00054616,43115.0,43114.0,0.57170247]
[1644545174402,0.00054616,43115.0,43114.0,0.62170247]
[1644545174600,0.00054616,43115.0,43114.0,0.82045287]
[1644545174800,0.28945437,43122.0,43114.0,0.49527287]
[1644545175052,0.0004208,43117.0,43115.0,0.32518]
[1644545175345,0.0004208,43117.0,43115.0,0.38320154]
[1644545175544,0.0004208,43117.0,43115.0,0.53623395]
[1644545176043,0.05,43123.0,43115.0,0.2108752]
[1644545176244,0.00052547,43118.0,43116.0,0.71741566]
[1644545176443,0.00052547,43118.0,43117.0,0.32518]
[1644545176643,0.00052547,43118.0,43117.0,0.63000368]
[1644545176844,0.00052547,43118.0,43117.0,0.68000368]
[1644545177046,0.05,43123.0,43117.0,0.93638763]
[1644545177448,0.00052546,43120.0,43117.0,0.93638763]
[1644545177849,0.00052546,43120.0,43117.0,1.03638763]
[1644545178047,0.00052546,43120.0,43118.0,0.32518]
[1644545178249,0.05,43123.0,43118.0,0.37518]
[1644545178449,0.05,43123.0,43120.0,0.32518]
[1644545178649,0.00052663,43121.0,43120.0,0.37518]
[1644545178902,0.00052663,43121.0,43120.0,0.47518]
[1644545179203,0.42857065,43135.0,43120.0,0.52518]
[1644545179508,0.36254065,43135.0,43132.0,0.05]
[1644545179701,0.36254065,43135.0,43133.0,0.32518]
[1644545179702,0.05,43135.0,43133.0,0.32518]
[1644545179903,0.05,43135.0,43133.0,0.42518]
[1644545180102,0.05,43135.0,43133.0,0.86052221]
[1644545181403,0.05,43135.0,43133.0,0.32518]
[1644545181703,0.32518,43141.0,43132.0,0.30479595]
[1644545181904,0.32518,43140.0,43132.0,0.30479595]
[1644545182101,0.00042109,43136.0,43132.0,0.30479595]
[1644545182302,0.00042109,43136.0,43133.0,0.32518]
[1644545182746,0.00042109,43136.0,43133.0,0.37518]
[1644545182950,0.00042109,43136.0,43134.0,0.32518]
[1644545183149,0.32518,43140.0,43133.0,0.15]
[1644545183351,0.00054864,43137.0,43134.0,0.32518]
[1644545183550,0.00054864,43137.0,43136.0,0.12149904]
[1644545183755,0.9381,43151.0,43136.0,0.49667904]
[1644545183955,0.32518,43149.0,43145.0,0.05]
[1644545184150,0.32518,43149.0,43148.0,0.34043275]
[1644545184151,0.37518,43149.0,43148.0,0.34043275]
[1644545184353,0.05,43149.0,43148.0,0.36410104]
[1644545184550,0.05,43149.0,43144.0,0.28308204]
[1644545184751,0.32518,43148.0,43144.0,0.33308204]
[1644545184950,0.32518,43148.0,43144.0,0.28308204]
[1644545185150,0.05,43149.0,43145.0,0.32518]
[1644545185352,0.05,43149.0,43145.0,0.1]
[1644545185556,0.32518,43145.0,43144.0,0.05]
[1644545185751,0.32518,43145.0,43140.0,0.1964]
[1644545185951,0.39170976,43146.0,43140.0,0.0464]
[1644545185952,0.32518,43144.0,43140.0,0.0464]
[1644545186153,0.32518,43144.0,43140.0,0.0964]
[1644545186399,0.39170976,43146.0,43140.0,0.35940781]
[1644545186800,0.39170976,43146.0,43140.0,0.40940781]
[1644545186999,0.00042033,43144.0,43141.0,0.32518]
[1644545187504,0.00042033,43144.0,43143.0,0.37518]
[1644545187900,0.4955,43151.0,43143.0,0.47518]
[1644545188204,0.4955,43151.0,43144.0,0.32518]
[1644545188399,0.00042017,43146.0,43145.0,0.2884075]
[1644545188600,0.00042017,43146.0,43145.0,0.6635875]
[1644545188801,0.00042017,43146.0,43145.0,0.37518]
[1644545189002,0.00042017,43146.0,43145.0,0.05]
[1644545189201,0.32518,43146.0,43134.0,0.4274]
[1644545189399,0.26687656,43149.0,43134.0,0.4274]
[1644545189400,0.00042408,43148.0,43135.0,0.38317289]
[1644545189600,0.00042408,43148.0,43135.0,0.05799289]
[1644545189899,0.05,43142.0,43137.0,0.32518]
[1644545190148,0.05,43142.0,43140.0,0.32518]
[1644545190548,0.05,43142.0,43140.0,0.52518]
[1644545190750,0.00042408,43144.0,43140.0,0.42518]
[1644545190951,0.00042408,43144.0,43143.0,0.05]
[1644545191146,0.00042408,43144.0,43143.0,0.37518]
[1644545191346,0.00042408,43144.0,43143.0,0.57518]
[1644545191648,0.4955,43152.0,43143.0,0.57518]
[1644545191848,0.49507599,43152.0,43150.0,0.36271585]
[1644545192046,0.32518,43151.0,43150.0,0.1]
[1644545192247,0.09281975,43154.0,43150.0,0.2]
[1644545192446,0.32518,43153.0,43150.0,0.2]
[1644545192647,0.09281975,43154.0,43150.0,0.2]
[1644545192846,0.09281975,43154.0,43152.0,0.24085579]
[1644545193046,0.09324358,43154.0,43152.0,0.34085579]
[1644545193649,0.00042383,43154.0,43153.0,0.64191553]
[1644545193903,0.03087197,43164.0,43153.0,0.79988139]
[1644545194101,0.03087197,43164.0,43159.0,0.08204099]
[1644545194301,0.03087197,43164.0,43160.0,0.32518]
[1644545194601,0.03087197,43164.0,43162.0,0.32518]
[1644545194800,0.03087197,43164.0,43162.0,0.64006693]
[1644545195003,0.03087197,43164.0,43162.0,0.05]
[1644545195202,0.03087197,43164.0,43160.0,0.05]
[1644545195402,0.03087197,43164.0,43158.0,0.05]
[1644545195601,0.03087197,43164.0,43152.0,0.34085579]
[1644545195602,0.25167699,43162.0,43152.0,0.34085579]
[1644545195814,0.25167699,43162.0,43152.0,0.24085579]
[1644545196004,0.29451328,43156.0,43152.0,0.1]
[1644545196204,0.29451328,43156.0,43153.0,0.32518]
[1644545196402,0.29451328,43156.0,43153.0,0.42518]
[1644545196604,0.29507669,43156.0,43153.0,0.42518]
[1644545196803,0.29507669,43156.0,43153.0,0.52518]
[1644545197002,0.29507669,43156.0,43154.0,0.135259]
[1644545197203,0.29507669,43156.0,43151.0,0.05]
[1644545197403,0.29507669,43156.0,43152.0,0.32518]
[1644545197658,0.29451328,43156.0,43152.0,0.37518]
[1644545197857,0.29451328,43156.0,43153.0,0.32518]